fUSD/lending_fUSD_20260405
["ID","MTS","AMOUNT","RATE_DAILY","PERIOD"]
[419783030,1775377841716,-504.26932362,0.00010235,2]
[419783031,1775377841726,-1003.4,0.00010252,2]
[419783032,1775377841736,-189.02,0.00010279,2]
[419783033,1775377841746,-420.0,0.00010353,2]
[419783034,1775377841756,-1680.0,0.00010353,2]
[419783035,1775377841766,-250.0,0.00010353,2]
[419783036,1775377841776,-255.0,0.00010372,2]
[419783037,1775377841786,-5533.0,0.000104,5]
[419783038,1775377841796,-14111.56,0.00010475,2]
[419783039,1775377841806,-351.47,0.00010475,2]
[419783040,1775377841816,-999.99,0.00010475,2]
[419783041,1775377841826,-2175.77,0.00010475,2]
[419783042,1775377841837,-5379.83,0.00010475,2]
[419783043,1775377841847,-299.99,0.00010475,2]
[419783044,1775377841857,-9999.99,0.00010475,2]
[419783045,1775377841867,-150.99,0.00010475,2]
[419783046,1775377841877,-8076.76,0.00010475,2]
[419783047,1775377841888,-1557.38,0.00010475,2]
[419783048,1775377841898,-1620.86,0.00010475,2]
[419783049,1775377841909,-1549.98,0.00010475,2]
[419783050,1775377841920,-9999.99,0.00010475,2]
[419783051,1775377841930,-150.99,0.00010475,2]
[419783052,1775377841940,-9999.99,0.00010475,2]
[419783053,1775377841951,-356.07,0.00010475,2]
[419783054,1775377841961,-9999.99,0.00010475,2]
[419783055,1775377841971,-5085.88,0.00010475,2]
[419783056,1775377841981,-9999.99,0.00010475,2]
[419783057,1775377841991,-4999.99,0.00010475,2]
[419783058,1775377842002,-23359.22,0.00010475,2]
[419783059,1775377842012,-1500.0,0.00010508,2]
[419783060,1775377842022,-1341.5818023,0.00010508,2]
[419783061,1775377842031,-1500.0,0.00010508,2]
[419783062,1775377842042,-501.8263106,0.00010508,2]
[419783063,1775377842052,-1500.0,0.00010508,2]
[419783064,1775377842062,-3433.72,0.00010521,2]
[419783065,1775377842071,-4817.9468168,0.00010523,2]
[419783066,1775377842082,-1003.4,0.00010526,2]
[419783067,1775377842093,-200.0,0.00010548,2]
[419783068,1775377842103,-1438.09495884,0.00010548,2]
[419783069,1775377842114,-466.81,0.00010627,2]
[419783070,1775377842123,-179.0,0.00010761,2]
[419783071,1775377842134,-1003.4,0.000108,2]
[419783072,1775377842144,-492.62,0.0001082,2]
[419783073,1775377842155,-1600.0,0.00010951,2]
[419783074,1775377842164,-502.00598187,0.00010959,2]
[419783075,1775377842176,-2000.0,0.00011056,2]
[419783076,1775377842186,-2000.0,0.00011056,2]
[419783077,1775377842196,-1068.30323739,0.00011056,2]
[419783078,1775377842206,-1475.0,0.0001107,2]
[419783079,1775377842216,-501.43135783,0.00011073,2]
[419783080,1775377842227,-500.0,0.00011073,2]
[419783081,1775377842236,-500.0,0.00011073,2]
[419783082,1775377842248,-501.03587191,0.00011073,2]
[419783083,1775377842257,-500.0,0.00011073,2]
[419783084,1775377842268,-381.14774159,0.00011073,2]
[419783085,1775377842278,-1003.4,0.00011074,2]
[419783086,1775377842289,-753.0,0.00011092,2]
[419783087,1775377842300,-200.0,0.00011096,2]
[419783088,1775377842310,-1491.30447232,0.00011096,2]
[419783089,1775377842320,-38258.22545177,0.00011099,2]
[419783090,1775377842331,-38258.22545168,0.00011099,2]
[419783091,1775377842340,-38258.22545168,0.00011099,2]
[419783092,1775377842353,-40979.33701347,0.00011099,2]
[419783093,1775377842362,-40979.33701341,0.00011099,2]
[419783094,1775377842372,-40979.33701341,0.00011099,2]
[419783095,1775377842381,-466.81,0.00011133,2]
[419783096,1775377842391,-1500.0,0.00011187,2]
[419783097,1775377842403,-362.45,0.00011253,2]
[419783098,1775377842412,-1003.4,0.00011348,2]
[419783099,1775377842422,-587.0,0.00011388,2]
[419783100,1775377842431,-2351.0,0.00011388,2]
[419783101,1775377842440,-38258.22545168,0.00011394,2]
[419783102,1775377842450,-433.0,0.00011409,2]
[419783103,1775377842460,-40979.33701341,0.00011438,2]
[419783104,1775377842470,-2959.18,0.00011507,2]
[419783105,1775377842480,-4817.9468168,0.00011594,2]
[419783106,1775377842489,-1000.0,0.00011604,2]
[419783107,1775377842498,-1000.0,0.00011621,2]
[419783108,1775377842508,-1000.0,0.00011621,2]
[419783109,1775377842518,-1003.4,0.00011622,2]
[419783110,1775377842527,-466.81,0.00011639,2]
[419783111,1775377842537,-203.96604798,0.00011644,2]
[419783112,1775377842546,-1546.48273779,0.00011644,2]
[419783113,1775377842555,-457.0,0.00011754,2]
[419783114,1775377842566,-1003.4,0.00011896,2]
[419783115,1775377842575,-38258.22545168,0.00012082,2]
[419783116,1775377842585,-1178.0,0.00012099,2]
[419783117,1775377842594,-244.0,0.00012123,2]
[419783118,1775377842604,-500.0,0.0001213,2]
[419783119,1775377842614,-40979.33701341,0.00012141,2]
[419783120,1775377842624,-466.81,0.00012145,2]
[419783121,1775377842633,-524.0,0.00012147,2]
[419783122,1775377842643,-1600.0,0.00012167,2]
[419783123,1775377842652,-1500.0,0.00012168,2]
[419783124,1775377842661,-1500.0,0.00012168,2]
[419783125,1775377842671,-1003.4,0.0001217,2]
[419783126,1775377842680,-1339.48329415,0.00012192,2]
[419783127,1775377842690,-250.0,0.00012437,2]
[419783128,1775377842700,-1003.47,0.00012444,2]
[419783129,1775377842710,-823.0,0.00012527,2]
[419783130,1775377842719,-3292.0,0.00012527,2]
[419783131,1775377842729,-736.0,0.0001255,2]
[419783132,1775377842738,-811.94017057,0.00012566,2]
[419783133,1775377842747,-1649.300491,0.00012635,2]
[419783134,1775377842756,-6022.838856,0.00012635,2]
[419783135,1775377842766,-466.81,0.00012651,2]
[419783136,1775377842775,-4817.9468168,0.00012666,2]
[419783137,1775377842785,-274.57636762,0.00012693,2]
[419783138,1775377842794,-2000.0,0.00012716,2]
[419783139,1775377842804,-2000.0,0.00012716,2]
[419783140,1775377842813,-151.0,0.00012739,2]
[419783141,1775377842822,-38258.22545168,0.0001277,2]
[419783142,1775377842831,-3225.33480356,0.00012793,2]
[419783143,1775377842841,-7916.642359,0.00012812,2]
[419783144,1775377842852,-40979.33701341,0.00012843,2]
[419783145,1775377842861,-18883.81,0.00012893,2]
[419783146,1775377842871,-9999.99,0.00012893,2]
[419783147,1775377842880,-29999.99,0.00012893,2]
[419783148,1775377842890,-2000.0,0.00013,2]
[419783149,1775377842899,-2000.0,0.00013,2]
[419783150,1775377842908,-2000.0,0.00013,2]
[419783151,1775377842920,-2000.0,0.00013,2]
[419783152,1775377842930,-2000.0,0.00013,2]
[419783153,1775377842942,-2000.0,0.00013,2]
[419783154,1775377842952,-2000.0,0.00013,2]
[419783155,1775377842962,-2000.0,0.00013,2]
[419783156,1775377842971,-2000.0,0.00013,2]
[419783157,1775377842982,-2000.0,0.00013,2]
[419783158,1775377842994,-2000.0,0.00013,2]
[419783159,1775377843004,-2000.0,0.00013,2]
[419783160,1775377843014,-2000.0,0.00013,2]
[419783161,1775377843023,-2000.0,0.00013,2]
[419783162,1775377843033,-2000.0,0.00013,2]
[419783163,1775377843043,-1326.87745236,0.00013,2]
[419783164,1775377843052,-200.0,0.00013,2]
[419783165,1775377843062,-200.0,0.00013,2]
[419783166,1775377843071,-2000.0,0.00013073,2]
[419783167,1775377843080,-2000.0,0.00013073,2]
[419783168,1775377843090,-2000.0,0.00013073,2]
[419783169,1775377843100,-2000.0,0.00013073,2]
[419783170,1775377843110,-2000.0,0.00013073,2]
[419783172,1775377843120,-2000.0,0.00013073,2]
[419783173,1775377843129,-2000.0,0.00013073,2]
[419783174,1775377843139,-2000.0,0.00013073,2]
[419783175,1775377843149,-2000.0,0.00013073,2]
[419783176,1775377843158,-2000.0,0.00013073,2]
[419783177,1775377843167,-2000.0,0.00013073,2]
[419783178,1775377843177,-2000.0,0.00013073,2]
[419783179,1775377843186,-2000.0,0.00013073,2]
[419783180,1775377843196,-2000.0,0.00013073,2]
[419783181,1775377843205,-2000.0,0.00013073,2]
[419783182,1775377843215,-2000.0,0.00013073,2]
[419783183,1775377843224,-2000.0,0.00013073,2]
[419783184,1775377843233,-2000.0,0.00013073,2]
[419783185,1775377843243,-2000.0,0.00013073,2]
[419783186,1775377843252,-2000.0,0.00013073,2]
[419783187,1775377843262,-508.0,0.00013111,2]
[419783188,1775377843272,-200.0,0.0001313,2]
[419783189,1775377843281,-200.0,0.0001313,2]
[419783190,1775377843291,-160.0,0.00013135,2]
[419783192,1775377843301,-275.983906,0.00013144,2]
[419783194,1775377843310,-466.81,0.00013157,2]
[419783195,1775377843320,-3880.3,0.00013175,2]
[419783197,1775377843329,-2000.0,0.00013182,2]
[419783198,1775377843338,-989.580295,0.00013189,2]
[419783199,1775377843347,-1148.83,0.000132,2]
[419783201,1775377843357,-200.0,0.00013261,2]
[419783203,1775377843367,-200.0,0.00013261,2]
[419783204,1775377843376,-2500.0,0.00013264,2]
[419783205,1775377843386,-2309.28131584,0.00013264,2]
[419783206,1775377843395,-2540.07,0.00013359,2]
[419783207,1775377843404,-1561.16,0.00013359,2]
[419783208,1775377843414,-1600.0,0.00013384,2]
[419783209,1775377843423,-200.0,0.00013394,2]
[419783210,1775377843432,-200.0,0.00013394,2]
[419783211,1775377843443,-492.62,0.00013406,2]
[419783212,1775377843452,-578.20924308,0.00013412,2]
[419783213,1775377843462,-1428.38747117,0.00013412,2]
[419783214,1775377843472,-721.12765535,0.00013412,2]
[419783215,1775377843482,-500.0,0.00013412,2]
[419783216,1775377843492,-500.0,0.00013412,2]
[419783217,1775377843501,-209.40437684,0.00013412,2]
[419783219,1775377843510,-500.0,0.00013412,2]
[419783221,1775377843520,-500.0,0.00013412,2]
[419783223,1775377843530,-200.0,0.00013412,2]
[419783224,1775377843539,-500.0,0.00013412,2]
[419783225,1775377843549,-500.0,0.00013412,2]
[419783226,1775377843558,-500.0,0.00013412,2]
[419783227,1775377843567,-500.0,0.00013412,2]
[419783228,1775377843577,-151.0,0.00013412,2]
[419783229,1775377843587,-500.0,0.00013412,2]
[419783230,1775377843597,-151.0,0.00013412,2]
[419783231,1775377843607,-500.0,0.00013412,2]
[419783232,1775377843617,-151.0,0.00013412,2]
[419783233,1775377843627,-500.0,0.00013412,2]
[419783234,1775377843637,-154.76515316,0.00013412,2]
[419783235,1775377843647,-500.0,0.00013412,2]
[419783236,1775377843657,-1000.0,0.00013412,2]
[419783237,1775377843666,-1000.0,0.00013412,2]
[419783238,1775377843676,-1000.0,0.00013412,2]
[419783239,1775377843686,-1000.0,0.00013412,2]
[419783240,1775377843696,-1000.0,0.00013412,2]
[419783241,1775377843706,-1000.0,0.00013412,2]
[419783242,1775377843716,-1000.0,0.00013412,2]
[419783243,1775377843725,-1000.0,0.00013412,2]
[419783244,1775377843735,-424.86822135,0.00013412,2]
[419783245,1775377843746,-209.40437684,0.00013412,2]
[419783246,1775377843755,-174.61919141,0.00013412,2]
[419783247,1775377843765,-743.50770149,0.00013412,2]
[419783248,1775377843775,-200.0,0.00013412,2]
[419783249,1775377843784,-151.0,0.00013412,2]
[419783250,1775377843794,-3000.0,0.00013412,2]
[419783251,1775377843803,-3000.0,0.00013412,2]
[419783252,1775377843813,-3000.0,0.00013412,2]
[419783253,1775377843823,-3000.0,0.00013412,2]
[419783254,1775377843832,-3000.0,0.00013412,2]
[419783255,1775377843842,-3000.0,0.00013412,2]
[419783256,1775377843851,-3000.0,0.00013412,2]
[419783257,1775377843861,-3000.0,0.00013412,2]
[419783258,1775377843870,-3000.0,0.00013412,2]
[419783259,1775377843880,-3000.0,0.00013412,2]
[419783260,1775377843889,-1297.36921025,0.00013412,2]
[419783261,1775377843899,-693.3919763,0.00013412,2]
[419783262,1775377843908,-500.0,0.00013412,2]
[419783263,1775377843917,-500.0,0.00013412,2]
[419783264,1775377843927,-500.0,0.00013412,2]
[419783265,1775377843936,-279.9045709,0.00013412,2]
[419783266,1775377843946,-500.0,0.00013412,2]
[419783267,1775377843956,-170.0,0.00013412,2]
[419783268,1775377843966,-500.0,0.00013412,2]
[419783269,1775377843975,-170.0,0.00013412,2]
[419783270,1775377843986,-157.03985341,0.00013412,2]
[419783271,1775377843996,-170.0,0.00013412,2]
[419783272,1775377844006,-170.0,0.00013412,2]
[419783273,1775377844015,-170.0,0.00013412,2]
[419783274,1775377844024,-170.0,0.00013412,2]
[419783275,1775377844034,-170.0,0.00013412,2]
[419783276,1775377844043,-170.0,0.00013412,2]
[419783277,1775377844052,-170.0,0.00013412,2]
[419783278,1775377844061,-170.0,0.00013412,2]
[419783279,1775377844071,-170.0,0.00013412,2]
[419783280,1775377844082,-3240.0,0.00013425,2]
[419783281,1775377844093,-38258.22545168,0.00013458,2]
[419783282,1775377844104,-500.0,0.00013467,2]
[419783283,1775377844114,-151.0,0.00013467,2]
[419783284,1775377844124,-500.0,0.00013522,2]
[419783285,1775377844135,-151.0,0.00013522,2]
[419783286,1775377844145,-200.0,0.00013528,2]
[419783287,1775377844155,-200.0,0.00013528,2]
[419783288,1775377844165,-3000.0,0.00013534,2]
[419783289,1775377844176,-40979.33701341,0.00013546,2]
[419783290,1775377844187,-500.0,0.00013573,2]
[419783291,1775377844196,-500.0,0.00013573,2]
[419783292,1775377844206,-500.0,0.00013577,2]
[419783293,1775377844215,-151.0,0.00013577,2]
[419783294,1775377844225,-757.6654757,0.00013588,2]
[419783295,1775377844235,-151.0,0.00013595,2]
[419783296,1775377844545,-1500000.0,0.00013598,2]
[419783297,1775377844555,-500.0,0.00013632,2]
[419783299,1775377844564,-151.0,0.00013632,2]
[419783300,1775377844573,-466.81,0.00013663,2]
[419783301,1775377844583,-500.0,0.00013687,2]
[419783302,1775377844592,-151.0,0.00013687,2]
[419783303,1775377844602,-500.0,0.00013698,2]
[419783304,1775377844611,-636.09278756,0.00013698,2]
[419783305,1775377844622,-500.0,0.00013698,2]
[419783306,1775377844632,-500.0,0.00013698,2]
[419783307,1775377844641,-500.0,0.00013698,2]
[419783308,1775377844651,-500.0,0.00013698,2]
[419783309,1775377844661,-500.0,0.00013698,2]
[419783310,1775377844671,-500.0,0.00013698,2]
[419783311,1775377844681,-500.0,0.00013698,2]
[419783312,1775377844690,-564.47521126,0.00013698,2]
[419783313,1775377844700,-500.0,0.00013698,2]
[419783314,1775377844710,-504.35317897,0.00013698,2]
[419783315,1775377844719,-500.0,0.00013698,2]
[419783316,1775377844729,-500.0,0.00013698,2]
[419783317,1775377844740,-500.0,0.00013698,2]
[419783318,1775377844750,-500.0,0.00013698,2]
[419783319,1775377844759,-500.0,0.00013698,2]
[419783320,1775377844769,-500.0,0.00013698,2]
[419783321,1775377844778,-500.0,0.00013698,2]
[419783322,1775377844788,-500.0,0.00013698,2]
[419783323,1775377844798,-500.0,0.00013698,2]
[419783324,1775377844807,-500.0,0.00013698,2]
[419783325,1775377844817,-500.0,0.00013698,2]
[419783326,1775377844826,-500.0,0.00013698,2]
[419783327,1775377844836,-500.0,0.00013698,2]
[419783328,1775377844846,-500.0,0.00013698,2]
[419783329,1775377844855,-500.0,0.00013698,2]
[419783330,1775377844866,-500.0,0.00013698,2]
[419783331,1775377844875,-500.0,0.00013698,2]
[419783332,1775377844885,-889.96,0.00013698,2]
[419783333,1775377844894,-889.96,0.00013698,2]
[419783334,1775377844904,-889.96,0.00013698,2]
[419783335,1775377844913,-889.96,0.00013698,2]
[419783336,1775377844923,-889.96,0.00013698,2]
[419783337,1775377844932,-889.96,0.00013698,2]
[419783338,1775377844942,-889.96,0.00013698,2]
[419783339,1775377844952,-889.96,0.00013698,2]
[419783340,1775377844962,-889.96,0.00013698,2]
[419783341,1775377844972,-889.96,0.00013698,2]
[419783342,1775377844982,-889.96,0.00013698,2]
[419783343,1775377844992,-889.96,0.00013698,2]
[419783344,1775377845002,-889.96,0.00013698,2]
[419783345,1775377845012,-889.96,0.00013698,2]
[419783346,1775377845021,-889.96,0.00013698,2]
[419783347,1775377845032,-889.96,0.00013698,2]
[419783348,1775377845043,-889.96,0.00013698,2]
[419783349,1775377845053,-518.19,0.00013698,2]
[419783350,1775377845063,-518.19,0.00013698,2]
[419783351,1775377845074,-518.19,0.00013698,2]
[419783352,1775377845083,-518.19,0.00013698,2]
[419783353,1775377845094,-518.19,0.00013698,2]
[419783354,1775377845103,-518.19,0.00013698,2]
[419783355,1775377845114,-518.19,0.00013698,2]
[419783356,1775377845123,-518.19,0.00013698,2]
[419783357,1775377845132,-518.19,0.00013698,2]
[419783358,1775377845142,-518.19,0.00013698,2]
[419783359,1775377845151,-518.19,0.00013698,2]
[419783360,1775377845160,-518.19,0.00013698,2]
[419783361,1775377845170,-518.19,0.00013698,2]
[419783362,1775377845179,-518.19,0.00013698,2]
[419783363,1775377845188,-518.19,0.00013698,2]
[419783364,1775377845198,-518.19,0.00013698,2]
[419783365,1775377845208,-804.59,0.00013698,2]
[419783366,1775377845217,-804.59,0.00013698,2]
[419783367,1775377845227,-804.59,0.00013698,2]
[419783368,1775377845236,-804.59,0.00013698,2]
[419783369,1775377845246,-804.59,0.00013698,2]
[419783370,1775377845255,-804.59,0.00013698,2]
[419783371,1775377845265,-804.59,0.00013698,2]
[419783372,1775377845274,-804.59,0.00013698,2]
[419783373,1775377845283,-804.59,0.00013698,2]
[419783374,1775377845293,-804.59,0.00013698,2]
[419783375,1775377845302,-804.59,0.00013698,2]
[419783376,1775377845312,-804.59,0.00013698,2]
[419783377,1775377845321,-804.59,0.00013698,2]
[419783378,1775377845330,-804.59,0.00013698,2]
[419783379,1775377845339,-804.59,0.00013698,2]
[419783380,1775377845348,-804.59,0.00013698,2]
[419783381,1775377845357,-989.7,0.00013698,2]
[419783382,1775377845367,-989.7,0.00013698,2]
[419783383,1775377845376,-989.7,0.00013698,2]
[419783384,1775377845385,-989.7,0.00013698,2]
[419783385,1775377845395,-989.7,0.00013698,2]
[419783386,1775377845404,-989.7,0.00013698,2]
[419783387,1775377845414,-989.7,0.00013698,2]
[419783388,1775377845423,-989.7,0.00013698,2]
[419783389,1775377845432,-989.7,0.00013698,2]
[419783390,1775377845441,-1149.46,0.00013698,2]
[419783391,1775377845451,-1149.46,0.00013698,2]
[419783392,1775377845460,-1149.46,0.00013698,2]
[419783393,1775377845470,-1149.46,0.00013698,2]
[419783394,1775377845480,-1149.46,0.00013698,2]
[419783395,1775377845489,-1149.46,0.00013698,2]
[419783396,1775377845499,-1149.46,0.00013698,2]
[419783397,1775377845509,-1149.46,0.00013698,2]
[419783398,1775377845519,-1149.46,0.00013698,2]
[419783399,1775377845528,-500.0,0.00013698,2]
[419783400,1775377845538,-500.0,0.00013698,2]
[419783401,1775377845547,-500.0,0.00013698,2]
[419783402,1775377845557,-500.0,0.00013698,2]
[419783403,1775377845566,-500.0,0.00013698,2]
[419783404,1775377845576,-500.0,0.00013698,2]
[419783405,1775377845585,-500.0,0.00013698,2]
[419783406,1775377845595,-500.0,0.00013698,2]
[419783407,1775377845604,-500.0,0.00013698,2]
[419783408,1775377845614,-500.0,0.00013698,2]
[419783409,1775377845624,-500.0,0.00013698,2]
[419783410,1775377845634,-500.0,0.00013698,2]
[419783411,1775377845643,-500.0,0.00013698,2]
[419783412,1775377845653,-500.0,0.00013698,2]
[419783413,1775377845662,-500.0,0.00013698,2]
[419783414,1775377845671,-500.0,0.00013698,2]
[419783415,1775377845681,-500.0,0.00013698,2]
[419783416,1775377845690,-500.0,0.00013698,2]
[419783417,1775377845700,-500.0,0.00013698,2]
[419783418,1775377845709,-500.0,0.00013698,2]
[419783419,1775377845724,-500.0,0.00013698,2]
[419783420,1775377845734,-500.0,0.00013698,2]
[419783421,1775377845744,-500.0,0.00013698,2]
[419783422,1775377845754,-500.0,0.00013698,2]
[419783423,1775377845764,-500.0,0.00013698,2]
[419783424,1775377845774,-500.0,0.00013698,2]
[419783425,1775377845784,-500.0,0.00013698,2]
[419783426,1775377845793,-500.0,0.00013698,2]
[419783427,1775377845804,-150.0,0.00013699,2]
[419783428,1775377845814,-150.0,0.00013699,2]
[419783429,1775377845824,-150.0,0.00013699,2]
[419783430,1775377845834,-150.0,0.00013699,2]
[419783431,1775377845844,-150.0,0.00013699,2]
[419783432,1775377845855,-150.0,0.00013699,2]
[419783433,1775377845865,-150.0,0.00013699,2]
[419783434,1775377845875,-5957.33,0.00013699,2]
[419783435,1775377845885,-157.85,0.00013699,2]
[419783436,1775377845895,-500.0,0.00013699,2]
[419783437,1775377845905,-160.34417201,0.00013699,2]
[419783438,1775377845915,-500.0,0.00013699,2]
[419783439,1775377845925,-500.0,0.00013699,2]
[419783440,1775377845934,-500.0,0.00013699,2]
[419783441,1775377845944,-500.0,0.00013699,2]
[419783442,1775377845953,-500.0,0.00013699,2]
[419783443,1775377845963,-500.0,0.00013699,2]
[419783444,1775377845973,-500.0,0.00013699,2]
[419783445,1775377845983,-500.0,0.00013699,2]
[419783446,1775377845992,-500.0,0.00013699,2]
[419783447,1775377846002,-598.99606082,0.00013699,2]
[419783448,1775377846011,-500.0,0.00013699,2]
[419783449,1775377846021,-500.0,0.00013699,2]
[419783450,1775377846030,-500.0,0.00013699,2]
[419783451,1775377846040,-500.0,0.00013699,2]
[419783452,1775377846050,-500.0,0.00013699,2]
[419783453,1775377846060,-168.69935806,0.00013699,2]
[419783454,1775377846071,-160.7467095,0.00013699,2]
[419783455,1775377846083,-500.0,0.00013699,2]
[419783456,1775377846093,-500.0,0.00013699,2]
[419783457,1775377846102,-500.0,0.00013699,2]
[419783458,1775377846112,-312.74353669,0.00013699,2]
[419783459,1775377846122,-500.0,0.00013699,2]
[419783460,1775377846132,-164.79711181,0.00013699,2]
[419783461,1775377846142,-500.0,0.00013699,2]
[419783462,1775377846152,-500.0,0.00013699,2]
[419783463,1775377846161,-500.0,0.00013699,2]
[419783464,1775377846171,-500.0,0.00013699,2]
[419783465,1775377846180,-163.60261744,0.00013699,2]
[419783467,1775377846190,-500.0,0.00013699,2]
[419783468,1775377846200,-500.0,0.00013699,2]
[419783469,1775377846210,-500.0,0.00013699,2]
[419783470,1775377846222,-403.93256284,0.00013699,2]
[419783471,1775377846231,-519.03182682,0.00013699,2]
[419783472,1775377846241,-500.0,0.00013699,2]
[419783473,1775377846251,-202.64993829,0.00013699,2]
[419783475,1775377846261,-162.72924009,0.00013699,2]
[419783477,1775377846271,-500.0,0.00013699,2]
[419783479,1775377846281,-500.0,0.00013699,2]
[419783481,1775377846291,-515.7358709,0.00013699,2]
[419783482,1775377846301,-500.0,0.00013699,2]
[419783483,1775377846311,-569.20510167,0.00013699,2]
[419783484,1775377846322,-210.98153295,0.00013699,2]
[419783485,1775377846332,-518.73332026,0.00013699,2]
[419783486,1775377846343,-500.50066882,0.00013699,2]
[419783487,1775377846353,-500.0,0.00013699,2]
[419783488,1775377846362,-607.20051974,0.00013699,2]
[419783489,1775377846372,-500.0,0.00013699,2]
[419783490,1775377846382,-500.0,0.00013699,2]
[419783491,1775377846392,-500.0,0.00013699,2]
[419783492,1775377846402,-198.65,0.00013699,2]
[419783493,1775377846413,-1000.0,0.00013699,2]
[419783494,1775377846424,-1001.03211684,0.00013699,15]
[419783495,1775377846435,-150.0,0.000137,2]
[419783496,1775377846447,-150.0,0.000137,2]
[419783497,1775377846457,-150.0,0.000137,2]
[419783498,1775377846467,-218.48382407,0.000137,2]
[419783499,1775377846476,-996.49996996,0.00013701,2]
[419783500,1775377846488,-500.0,0.00013742,2]
[419783501,1775377846498,-151.0,0.00013742,2]
[419783502,1775377846508,-1000.0,0.00013773,2]
[419783503,1775377846518,-1152.0,0.0001378,2]
[419783504,1775377846527,-4609.0,0.0001378,2]
[419783505,1775377846537,-500.0,0.00013797,2]
[419783506,1775377846547,-151.0,0.00013797,2]
[419783507,1775377846557,-1252.0,0.00013804,2]
[419783508,1775377846566,-1800.0,0.00013808,2]
[419783509,1775377846576,-415.04157441,0.00013812,2]
[419783510,1775377846586,-362.45,0.00013818,2]
[419783511,1775377846595,-1363.0,0.00013837,2]
[419783512,1775377846605,-1363.0,0.00013837,2]
[419783513,1775377846615,-1363.0,0.00013837,2]
[419783514,1775377846625,-1363.0,0.00013837,2]
[419783515,1775377846634,-1363.0,0.00013837,2]
[419783516,1775377846644,-1363.0,0.00013837,2]
[419783518,1775377846654,-1363.0,0.00013837,2]
[419783519,1775377846664,-1363.0,0.00013837,2]
[419783520,1775377846674,-1363.0,0.00013837,2]
[419783521,1775377846683,-1363.0,0.00013837,2]
[419783522,1775377846695,-1363.0,0.00013837,2]
[419783523,1775377846704,-1363.0,0.00013837,2]
[419783524,1775377846714,-1363.0,0.00013837,2]
[419783525,1775377846724,-1363.0,0.00013837,2]
[419783526,1775377846735,-1363.0,0.00013837,2]
[419783527,1775377846745,-1363.0,0.00013837,2]
[419783528,1775377846755,-1363.0,0.00013837,2]
[419783529,1775377846765,-1363.0,0.00013837,2]
[419783530,1775377846775,-1363.0,0.00013837,2]
[419783531,1775377846784,-1363.0,0.00013837,2]
[419783532,1775377846795,-1363.0,0.00013837,2]
[419783533,1775377846804,-1363.0,0.00013837,2]
[419783534,1775377846814,-1363.0,0.00013837,2]
[419783535,1775377846824,-1365.0,0.00013837,2]
[419783536,1775377846834,-500.0,0.00013837,2]
[419783537,1775377846844,-500.0,0.00013837,2]
[419783538,1775377846853,-500.0,0.00013837,2]
[419783539,1775377846862,-500.0,0.00013837,2]
[419783540,1775377846872,-500.0,0.00013837,2]
[419783541,1775377846882,-500.0,0.00013837,2]
[419783542,1775377846891,-500.0,0.00013837,2]
[419783543,1775377846902,-500.0,0.00013837,2]
[419783544,1775377846911,-500.0,0.00013837,2]
[419783545,1775377846921,-500.0,0.00013837,2]